fUST/lending_fUST_20250330
["ID","MTS","AMOUNT","RATE_DAILY","PERIOD"]
[356858648,1743336690536,-522.62,0.00024657,2]
[356858649,1743336690546,-3169.96,0.00024657,2]
[356858650,1743336690556,-863.37,0.00024657,2]
[356858651,1743336690566,-784.51,0.00024657,2]
[356858652,1743336690577,-678.48,0.00024657,2]
[356858653,1743336690587,-2366.19,0.00024657,2]
[356858654,1743336690596,-5982.6,0.00024657,2]
[356858655,1743336690606,-3762.67,0.00024657,2]
[356858656,1743336690616,-15868.4,0.00024657,2]
[356858657,1743336690626,-710.42,0.00024657,2]
[356858658,1743336690635,-6137.71,0.00024657,2]
[356858659,1743336690645,-4594.19,0.00024657,2]
[356858660,1743336690654,-792.46,0.00024657,2]
[356858661,1743336690664,-704.22,0.00024657,2]
[356858662,1743336690674,-2499.63,0.00024657,2]
[356858663,1743336690683,-1234.8,0.00024657,2]
[356858664,1743336690693,-5195.9,0.00024657,2]
[356858665,1743336690702,-1838.27,0.00024657,2]
[356858666,1743336690712,-12960.42,0.00024657,2]
[356858667,1743336690722,-500.0,0.00024657,2]
[356858668,1743336690731,-1624.35,0.00024657,2]
[356858669,1743336690741,-2670.09,0.00024657,2]
[356858670,1743336690752,-2660.8,0.00024657,2]
[356858671,1743336690763,-762.09,0.00024657,2]
[356858672,1743336690773,-986.66,0.00024657,2]
[356858673,1743336690783,-5869.07,0.00024657,2]
[356858674,1743336690792,-615.49,0.00024657,2]
[356858675,1743336690802,-674.35,0.00024657,2]
[356858676,1743336690812,-2378.15,0.00024657,2]
[356858677,1743336690821,-1297.51,0.00024657,2]
[356858678,1743336690832,-1800.76,0.00024657,2]
[356858679,1743336690843,-1268.95,0.00024657,2]
[356858680,1743336690852,-524.33,0.00024657,2]
[356858681,1743336690862,-881.02,0.00024657,2]
[356858682,1743336690872,-15685.99,0.00024657,2]
[356858683,1743336690882,-1200.54,0.00024657,2]
[356858684,1743336690891,-629.01,0.00024657,2]
[356858685,1743336690901,-8052.37,0.00024657,2]
[356858686,1743336690911,-946.43,0.00024657,2]
[356858687,1743336690920,-503.91,0.00024657,2]
[356858688,1743336690930,-573.79,0.00024657,2]
[356858689,1743336690939,-808.8,0.00024657,2]
[356858690,1743336690949,-767.64,0.00024657,2]
[356858691,1743336690959,-804.42,0.00024657,2]
[356858692,1743336690969,-737.11,0.00024657,2]
[356858693,1743336690978,-973.7124322,0.00024658,4]
[356858694,1743336690988,-280.0,0.00024658,2]
[356858695,1743336690997,-2000.0,0.00024658,5]
[356858696,1743336691007,-200.0,0.00024658,2]
[356858697,1743336691017,-835.47628717,0.00024737,2]
[356858698,1743336691026,-9436.61453242,0.0002479,2]
[356858699,1743336691036,-157097.127992,0.000249,2]
[356858700,1743336691046,-728.46,0.00024931,2]
[356858701,1743336691055,-997.04,0.00024931,2]
[356858702,1743336691064,-437.87069655,0.00024931,2]
[356858703,1743336691073,-971.02,0.00024931,2]
[356858704,1743336691083,-408.23121036,0.00024931,2]
[356858705,1743336691092,-586.47,0.00024931,2]
[356858706,1743336691102,-651.92,0.00024931,2]
[356858707,1743336691111,-694.25,0.00024931,2]
[356858708,1743336691120,-909.26,0.00024931,2]
[356858709,1743336691130,-508.9,0.00024931,2]
[356858710,1743336691139,-656.04,0.00024931,2]
[356858711,1743336691149,-500.0,0.00024931,2]
[356858712,1743336691159,-770.23,0.00024931,2]
[356858713,1743336691169,-1426.76,0.00024931,2]
[356858714,1743336691178,-739.19,0.00024931,2]
[356858715,1743336691188,-572.06,0.00024931,2]
[356858716,1743336691198,-377.99842313,0.00024931,2]
[356858717,1743336691208,-820.71,0.00024931,2]
[356858718,1743336691218,-792.51,0.00024931,2]
[356858719,1743336691227,-643.09,0.00024931,2]
[356858720,1743336691237,-500.0,0.00024931,2]
[356858721,1743336691247,-1373.59,0.00024931,2]
[356858722,1743336691257,-1089.35,0.00024931,2]
[356858723,1743336691267,-510.53,0.00024931,2]
[356858724,1743336691277,-786.5,0.00024931,2]
[356858725,1743336691287,-1995.85,0.00024931,2]
[356858726,1743336691297,-1928.93,0.00024931,2]
[356858727,1743336691307,-523.74,0.00024931,2]
[356858728,1743336691317,-523.69,0.00024931,2]
[356858729,1743336691326,-513.67,0.00024931,2]
[356858730,1743336691336,-1946.49,0.00024931,2]
[356858731,1743336691346,-512.33,0.00024931,2]
[356858732,1743336691355,-1442.4,0.00024931,2]
[356858733,1743336691365,-514.51,0.00024931,2]
[356858734,1743336691374,-500.0,0.00024931,2]
[356858735,1743336691384,-990.4,0.00024931,2]
[356858736,1743336691393,-942.64,0.00024931,2]
[356858737,1743336691403,-990.42,0.00024931,2]
[356858738,1743336691413,-252.10462962,0.00024931,2]
[356858739,1743336691423,-2586.18,0.00024931,2]
[356858740,1743336691433,-1024.32,0.00024931,2]
[356858741,1743336691443,-1087.6,0.00024931,2]
[356858742,1743336691453,-516.69,0.00024931,2]
[356858743,1743336691464,-606.30357655,0.00024931,2]
[356858744,1743336691474,-864.19,0.00024931,2]
[356858745,1743336691484,-683.23,0.00024931,2]
[356858746,1743336691494,-903.38,0.00024931,2]
[356858747,1743336691504,-500.0,0.00024931,2]
[356858748,1743336691514,-937.8,0.00024931,2]
[356858749,1743336691524,-1131.56,0.00024931,2]
[356858750,1743336691533,-1481.39,0.00024931,2]
[356858751,1743336691542,-798.99,0.00024931,2]
[356858752,1743336691552,-500.0,0.00024931,2]
[356858753,1743336691562,-517.61,0.00024931,2]
[356858754,1743336691571,-668.21,0.00024931,2]
[356858755,1743336691580,-899.15,0.00024931,2]
[356858756,1743336691590,-687.74,0.00024931,2]
[356858757,1743336691599,-707.97,0.00024931,2]
[356858758,1743336691609,-1296.96,0.00024931,2]
[356858759,1743336691618,-1345.33,0.00024931,2]
[356858760,1743336691628,-895.06,0.00024931,2]
[356858761,1743336691637,-2501.82,0.00024931,2]
[356858762,1743336691647,-914.71,0.00024931,2]
[356858763,1743336691657,-605.91204958,0.00024931,2]
[356858764,1743336691666,-737.75,0.00024931,2]
[356858765,1743336691676,-500.0,0.00024931,2]
[356858766,1743336691686,-4129.73,0.00024931,2]
[356858767,1743336691695,-776.32,0.00024931,2]
[356858768,1743336691705,-4902.77,0.00024931,2]
[356858769,1743336691714,-1672.32,0.00024931,2]
[356858770,1743336691724,-643.85,0.00024931,2]
[356858771,1743336691734,-824.37,0.00024931,2]
[356858772,1743336691744,-4151.45,0.00024931,2]
[356858773,1743336691757,-2985.11,0.00024931,2]
[356858774,1743336691767,-1413.31,0.00024931,2]
[356858775,1743336691777,-707.76,0.00024931,2]
[356858776,1743336691786,-699.65,0.00024931,2]
[356858777,1743336691797,-200.90538319,0.00024931,2]
[356858778,1743336691806,-1550.34,0.00024931,2]
[356858779,1743336691815,-736.27,0.00024931,2]
[356858780,1743336691826,-944.78,0.00024931,2]
[356858781,1743336691836,-552.72,0.00024931,2]
[356858782,1743336691845,-1984.0,0.00024931,2]
[356858783,1743336691855,-4192.73,0.00024931,2]
[356858784,1743336691864,-4062.87,0.00024931,2]
[356858785,1743336691874,-1610.13,0.00024931,2]
[356858786,1743336691884,-527.52,0.00024931,2]
[356858787,1743336691893,-551.98,0.00024931,2]
[356858788,1743336691903,-5745.56,0.00024931,2]
[356858789,1743336691912,-1105.77,0.00024931,2]
[356858790,1743336691922,-2204.43,0.00024931,2]
[356858791,1743336691932,-1201.49,0.00024931,2]
[356858792,1743336691942,-2246.36,0.00024931,2]
[356858793,1743336691951,-810.23,0.00024931,2]
[356858794,1743336691961,-1362.91,0.00024931,2]
[356858795,1743336691970,-2003.96,0.00024931,2]
[356858796,1743336691980,-929.62,0.00024931,2]
[356858797,1743336691989,-878.79,0.00024931,2]
[356858798,1743336691999,-500.0,0.00024931,2]
[356858799,1743336692008,-522.62,0.00024931,2]
[356858800,1743336692018,-3169.96,0.00024931,2]
[356858801,1743336692027,-863.37,0.00024931,2]
[356858802,1743336692037,-784.51,0.00024931,2]
[356858803,1743336692047,-678.48,0.00024931,2]
[356858804,1743336692056,-2366.19,0.00024931,2]
[356858805,1743336692066,-5982.6,0.00024931,2]
[356858806,1743336692076,-3762.67,0.00024931,2]
[356858807,1743336692086,-15868.4,0.00024931,2]
[356858808,1743336692096,-710.42,0.00024931,2]
[356858809,1743336692106,-6137.71,0.00024931,2]
[356858810,1743336692115,-4594.19,0.00024931,2]
[356858811,1743336692125,-792.46,0.00024931,2]
[356858812,1743336692135,-704.22,0.00024931,2]
[356858813,1743336692144,-2499.63,0.00024931,2]
[356858814,1743336692154,-1234.8,0.00024931,2]
[356858815,1743336692163,-1838.27,0.00024931,2]
[356858816,1743336692173,-5195.9,0.00024931,2]
[356858817,1743336692183,-12960.42,0.00024931,2]
[356858818,1743336692192,-500.0,0.00024931,2]
[356858819,1743336692201,-1624.35,0.00024931,2]
[356858820,1743336692210,-2670.09,0.00024931,2]
[356858821,1743336692220,-2660.8,0.00024931,2]
[356858822,1743336692230,-762.09,0.00024931,2]
[356858823,1743336692240,-986.66,0.00024931,2]
[356858824,1743336692250,-5869.07,0.00024931,2]
[356858825,1743336692259,-615.49,0.00024931,2]
[356858826,1743336692269,-674.35,0.00024931,2]
[356858827,1743336692278,-2378.15,0.00024931,2]
[356858828,1743336692288,-1297.51,0.00024931,2]
[356858829,1743336692297,-1800.76,0.00024931,2]
[356858830,1743336692307,-1268.95,0.00024931,2]
[356858831,1743336692316,-524.33,0.00024931,2]
[356858832,1743336692326,-881.02,0.00024931,2]
[356858833,1743336692336,-15685.99,0.00024931,2]
[356858834,1743336692346,-1200.54,0.00024931,2]
[356858835,1743336692355,-629.01,0.00024931,2]
[356858836,1743336692365,-8052.37,0.00024931,2]
[356858837,1743336692520,-946.43,0.00024931,2]
[356858838,1743336692530,-503.91,0.00024931,2]
[356858839,1743336692540,-573.79,0.00024931,2]
[356858840,1743336692550,-808.8,0.00024931,2]
[356858841,1743336692559,-767.64,0.00024931,2]
[356858842,1743336692569,-804.42,0.00024931,2]
[356858843,1743336692579,-737.11,0.00024931,2]
[356858844,1743336692588,-501.87237929,0.00024952,2]
[356858845,1743336692597,-1000.0,0.00024952,2]
[356858846,1743336692607,-501.46265067,0.00024952,2]
[356858847,1743336692616,-1000.0,0.00024952,2]
[356858848,1743336692625,-599.91495706,0.00024952,2]
[356858849,1743336692635,-1000.0,0.00024952,2]
[356858850,1743336692644,-1000.0,0.00024952,2]
[356858851,1743336692653,-501.3859714,0.00024952,2]
[356858852,1743336692663,-501.72590562,0.00024952,2]
[356858853,1743336692672,-1000.0,0.00024952,2]
[356858854,1743336692681,-500.0,0.00025,2]
[356858855,1743336692690,-13608.90228283,0.00025,4]
[356858856,1743336692699,-504704.35682755,0.00025,2]
[356858857,1743336692708,-37549.27496239,0.00025,2]
[356858858,1743336692717,-15734.58283576,0.00025,2]
[356858859,1743336692726,-760.94968512,0.00025,2]
[356858860,1743336692736,-2000.0,0.00025,4]
[356858861,1743336692745,-169.57191183,0.00025017,2]
[356858862,1743336692759,-728.46,0.00025205,2]
[356858863,1743336692769,-997.04,0.00025205,2]
[356858864,1743336692778,-971.02,0.00025205,2]
[356858865,1743336692788,-586.47,0.00025205,2]
[356858866,1743336692798,-651.92,0.00025205,2]
[356858867,1743336692808,-694.25,0.00025205,2]
[356858868,1743336692818,-909.26,0.00025205,2]
[356858869,1743336692827,-508.9,0.00025205,2]
[356858870,1743336692837,-656.04,0.00025205,2]
[356858871,1743336692848,-500.0,0.00025205,2]
[356858872,1743336692857,-770.23,0.00025205,2]
[356858873,1743336692867,-1426.76,0.00025205,2]
[356858874,1743336692876,-739.19,0.00025205,2]
[356858875,1743336692886,-572.06,0.00025205,2]
[356858876,1743336692895,-820.71,0.00025205,2]
[356858877,1743336692904,-792.51,0.00025205,2]
[356858878,1743336692914,-643.09,0.00025205,2]
[356858879,1743336692924,-500.0,0.00025205,2]
[356858880,1743336692935,-1373.59,0.00025205,2]
[356858881,1743336692944,-1089.35,0.00025205,2]
[356858882,1743336692955,-510.53,0.00025205,2]
[356858883,1743336692964,-786.5,0.00025205,2]
[356858884,1743336692974,-1995.85,0.00025205,2]
[356858885,1743336692983,-1928.93,0.00025205,2]
[356858886,1743336692993,-523.74,0.00025205,2]
[356858887,1743336693002,-523.69,0.00025205,2]
[356858888,1743336693012,-513.67,0.00025205,2]
[356858889,1743336693021,-1946.49,0.00025205,2]
[356858890,1743336693031,-512.33,0.00025205,2]
[356858891,1743336693040,-1442.4,0.00025205,2]
[356858892,1743336693050,-514.51,0.00025205,2]
[356858893,1743336693059,-314.56520573,0.00025205,2]
[356858894,1743336693069,-990.4,0.00025205,2]
[356858895,1743336693078,-942.64,0.00025205,2]
[356858896,1743336693088,-990.42,0.00025205,2]
[356858897,1743336693098,-2586.18,0.00025205,2]
[356858898,1743336693107,-1024.32,0.00025205,2]
[356858899,1743336693117,-1087.6,0.00025205,2]
[356858900,1743336693126,-516.69,0.00025205,2]
[356858901,1743336693136,-864.19,0.00025205,2]
[356858902,1743336693146,-683.23,0.00025205,2]
[356858903,1743336693156,-903.38,0.00025205,2]
[356858904,1743336693166,-500.0,0.00025205,2]
[356858905,1743336693176,-937.8,0.00025205,2]
[356858906,1743336693186,-1131.56,0.00025205,2]
[356858907,1743336693196,-1481.39,0.00025205,2]
[356858908,1743336693206,-798.99,0.00025205,2]
[356858909,1743336693216,-500.0,0.00025205,2]
[356858910,1743336693225,-517.61,0.00025205,2]
[356858911,1743336693235,-668.21,0.00025205,2]
[356858912,1743336693244,-899.15,0.00025205,2]
[356858913,1743336693254,-687.74,0.00025205,2]
[356858914,1743336693264,-707.97,0.00025205,2]
[356858915,1743336693274,-1296.96,0.00025205,2]
[356858916,1743336693283,-1345.33,0.00025205,2]
[356858917,1743336693294,-895.06,0.00025205,2]
[356858918,1743336693304,-2501.82,0.00025205,2]
[356858919,1743336693314,-914.71,0.00025205,2]
[356858920,1743336693323,-737.75,0.00025205,2]
[356858921,1743336693333,-168.14650248,0.00025205,2]
[356858922,1743336693342,-4129.73,0.00025205,2]
[356858923,1743336693352,-776.32,0.00025205,2]
[356858924,1743336693361,-4902.77,0.00025205,2]
[356858925,1743336693371,-1672.32,0.00025205,2]
[356858926,1743336693381,-643.85,0.00025205,2]
[356858927,1743336693390,-824.37,0.00025205,2]
[356858928,1743336693400,-4151.45,0.00025205,2]
[356858929,1743336693409,-2985.11,0.00025205,2]
[356858930,1743336693419,-1413.31,0.00025205,2]
[356858931,1743336693428,-707.76,0.00025205,2]
[356858932,1743336693439,-699.65,0.00025205,2]
[356858933,1743336693449,-1550.34,0.00025205,2]
[356858934,1743336693460,-736.27,0.00025205,2]
[356858935,1743336693470,-944.78,0.00025205,2]
[356858936,1743336693481,-552.72,0.00025205,2]
[356858937,1743336693490,-1984.0,0.00025205,2]
[356858938,1743336693500,-4192.73,0.00025205,2]
[356858939,1743336693510,-4062.87,0.00025205,2]
[356858940,1743336693520,-1610.13,0.00025205,2]
[356858941,1743336693530,-527.52,0.00025205,2]
[356858942,1743336693540,-551.98,0.00025205,2]
[356858943,1743336693550,-5745.56,0.00025205,2]
[356858944,1743336693560,-1105.77,0.00025205,2]
[356858945,1743336693569,-2204.43,0.00025205,2]
[356858946,1743336693579,-1201.49,0.00025205,2]
[356858947,1743336693588,-2246.36,0.00025205,2]
[356858948,1743336693598,-810.23,0.00025205,2]
[356858949,1743336693607,-1362.91,0.00025205,2]
[356858950,1743336693617,-2003.96,0.00025205,2]
[356858951,1743336693627,-929.62,0.00025205,2]
[356858952,1743336693637,-878.79,0.00025205,2]
[356858953,1743336693646,-500.0,0.00025205,2]
[356858954,1743336693656,-522.62,0.00025205,2]
[356858955,1743336693665,-3169.96,0.00025205,2]
[356858956,1743336693674,-863.37,0.00025205,2]
[356858957,1743336693684,-784.51,0.00025205,2]
[356858958,1743336693694,-678.48,0.00025205,2]
[356858959,1743336693704,-2366.19,0.00025205,2]
[356858960,1743336693714,-5982.6,0.00025205,2]
[356858961,1743336693723,-3762.67,0.00025205,2]
[356858962,1743336693733,-15868.4,0.00025205,2]
[356858963,1743336693743,-710.42,0.00025205,2]
[356858964,1743336693756,-6137.71,0.00025205,2]
[356858965,1743336693767,-4594.19,0.00025205,2]
[356858966,1743336693776,-792.46,0.00025205,2]
[356858967,1743336693786,-704.22,0.00025205,2]
[356858968,1743336693797,-2499.63,0.00025205,2]
[356858969,1743336693807,-1234.8,0.00025205,2]
[356858970,1743336693817,-1838.27,0.00025205,2]
[356858971,1743336693826,-5195.9,0.00025205,2]
[356858972,1743336693836,-12960.42,0.00025205,2]
[356858973,1743336693847,-479.23342691,0.00025205,2]
[356858974,1743336693857,-1624.35,0.00025205,2]
[356858975,1743336693867,-2670.09,0.00025205,2]
[356858976,1743336693877,-2660.8,0.00025205,2]
[356858977,1743336693887,-762.09,0.00025205,2]
[356858978,1743336693896,-986.66,0.00025205,2]
[356858979,1743336693907,-5869.07,0.00025205,2]
[356858980,1743336693917,-615.49,0.00025205,2]
[356858981,1743336693926,-674.35,0.00025205,2]
[356858982,1743336693938,-2378.15,0.00025205,2]
[356858983,1743336693948,-1297.51,0.00025205,2]
[356858984,1743336693957,-1800.76,0.00025205,2]
[356858985,1743336693967,-1268.95,0.00025205,2]
[356858986,1743336693977,-524.33,0.00025205,2]
[356858987,1743336693987,-881.02,0.00025205,2]
[356858988,1743336693997,-15685.99,0.00025205,2]
[356858989,1743336694006,-1200.54,0.00025205,2]
[356858990,1743336694016,-629.01,0.00025205,2]
[356858991,1743336694026,-8052.37,0.00025205,2]
[356858992,1743336694035,-946.43,0.00025205,2]
[356858993,1743336694045,-503.91,0.00025205,2]
[356858994,1743336694054,-573.79,0.00025205,2]
[356858995,1743336694064,-808.8,0.00025205,2]
[356858996,1743336694073,-767.64,0.00025205,2]
[356858997,1743336694083,-804.42,0.00025205,2]
[356858998,1743336694093,-737.11,0.00025205,2]
[356858999,1743336694103,-3162.0,0.00025239,2]
[356859000,1743336694113,-7704.74518475,0.00025245,5]
[356859001,1743336694123,-591.45940258,0.00025452,2]
[356859002,1743336694134,-728.53017644,0.00025479,2]
[356859003,1743336694144,-997.19640487,0.00025479,2]
[356859004,1743336694154,-971.05495641,0.00025479,2]
[356859005,1743336694164,-586.53987958,0.00025479,2]
[356859006,1743336694174,-652.01028504,0.00025479,2]
[356859007,1743336694185,-694.37217541,0.00025479,2]
[356859008,1743336694194,-909.33610515,0.00025479,2]
[356859009,1743336694204,-509.10065046,0.00025479,2]
[356859010,1743336694214,-656.1916805,0.00025479,2]
[356859011,1743336694223,-173.29058633,0.00025479,2]
[356859012,1743336694232,-770.26081871,0.00025479,2]
[356859013,1743336694242,-1426.92572148,0.00025479,2]
[356859014,1743336694251,-739.22188799,0.00025479,2]
[356859015,1743336694261,-572.28483644,0.00025479,2]
[356859016,1743336694271,-820.77669525,0.00025479,2]
[356859017,1743336694281,-792.59089007,0.00025479,2]
[356859018,1743336694290,-643.09860271,0.00025479,2]
[356859019,1743336694300,-335.15791086,0.00025479,2]
[356859020,1743336694310,-1373.71,0.00025479,2]
[356859021,1743336694320,-1089.55498179,0.00025479,2]
[356859022,1743336694329,-510.71,0.00025479,2]
[356859023,1743336694339,-786.63832632,0.00025479,2]
[356859024,1743336694349,-1996.03095619,0.00025479,2]
[356859025,1743336694359,-1928.9994268,0.00025479,2]
[356859026,1743336694369,-523.94456652,0.00025479,2]
[356859027,1743336694380,-523.91197719,0.00025479,2]
[356859028,1743336694390,-513.85646763,0.00025479,2]
[356859029,1743336694402,-1946.53392357,0.00025479,2]
[356859030,1743336694414,-512.4495044,0.00025479,2]
[356859031,1743336694425,-1442.61746802,0.00025479,2]
[356859032,1743336694438,-514.57748524,0.00025479,2]
[356859033,1743336694449,-990.46825002,0.00025479,2]
[356859034,1743336694459,-942.77848269,0.00025479,2]
[356859035,1743336694469,-990.47441617,0.00025479,2]
[356859036,1743336694479,-2586.37544307,0.00025479,2]
[356859037,1743336694489,-1024.55749669,0.00025479,2]
[356859038,1743336694499,-1087.76749746,0.00025479,2]
[356859039,1743336694508,-516.84969325,0.00025479,2]
[356859040,1743336694518,-864.33184276,0.00025479,2]
[356859041,1743336694528,-683.23952396,0.00025479,2]
[356859042,1743336694537,-903.45287533,0.00025479,2]
[356859043,1743336694547,-256.15467643,0.00025479,2]
[356859044,1743336694557,-937.99847521,0.00025479,2]
[356859045,1743336694567,-1131.61999204,0.00025479,2]
[356859046,1743336694576,-1481.544379,0.00025479,2]
[356859047,1743336694585,-799.19185885,0.00025479,2]
[356859048,1743336694595,-171.33439575,0.00025479,2]
[356859049,1743336694605,-517.72831065,0.00025479,2]
[356859050,1743336694614,-668.43471348,0.00025479,2]
[356859051,1743336694624,-899.18500155,0.00025479,2]
[356859052,1743336694634,-687.79351713,0.00025479,2]
[356859053,1743336694644,-708.10993981,0.00025479,2]
[356859054,1743336694653,-1297.10279689,0.00025479,2]
[356859055,1743336694663,-1345.45753055,0.00025479,2]
[356859056,1743336694672,-895.10564264,0.00025479,2]
[356859057,1743336694682,-2501.9510645,0.00025479,2]
[356859058,1743336694692,-914.725626,0.00025479,2]
[356859059,1743336694702,-737.81144265,0.00025479,2]
[356859060,1743336694712,-4129.78465443,0.00025479,2]
[356859061,1743336694722,-776.43554196,0.00025479,2]
[356859062,1743336694731,-4902.83,0.00025479,2]
[356859063,1743336694741,-1672.43,0.00025479,2]
[356859064,1743336694753,-643.9763645,0.00025479,2]
[356859065,1743336694765,-824.51436242,0.00025479,2]
[356859066,1743336694774,-4151.63619722,0.00025479,2]
[356859067,1743336694784,-2985.1734,0.00025479,2]
[356859068,1743336694795,-1413.37501519,0.00025479,2]
[356859069,1743336694804,-707.99711202,0.00025479,2]
[356859070,1743336694814,-699.80604402,0.00025479,2]
[356859071,1743336694824,-1550.56284285,0.00025479,2]
[356859072,1743336694835,-736.37035684,0.00025479,2]
[356859073,1743336694844,-552.93818304,0.00025479,2]
[356859074,1743336694854,-944.96651384,0.00025479,2]
[356859075,1743336694863,-1984.13180244,0.00025479,2]
[356859076,1743336694872,-4192.73900022,0.00025479,2]
[356859077,1743336694882,-4062.9048,0.00025479,2]
[356859078,1743336694891,-1610.33801171,0.00025479,2]
[356859079,1743336694900,-527.54704108,0.00025479,2]
[356859080,1743336694909,-552.18267295,0.00025479,2]
[356859081,1743336694918,-5745.57114708,0.00025479,2]
[356859082,1743336694928,-1105.88477281,0.00025479,2]
[356859083,1743336694938,-2204.43591221,0.00025479,2]
[356859084,1743336694947,-1201.71687587,0.00025479,2]
[356859085,1743336694956,-2246.46861614,0.00025479,2]
[356859086,1743336694965,-810.25598153,0.00025479,2]
[356859087,1743336694975,-1363.02170964,0.00025479,2]
[356859088,1743336694984,-2004.13202375,0.00025479,2]
[356859089,1743336694994,-929.64076084,0.00025479,2]
[356859090,1743336695004,-878.96449933,0.00025479,2]
[356859091,1743336695013,-270.56008469,0.00025479,2]
[356859092,1743336695022,-522.64029223,0.00025479,2]
[356859093,1743336695032,-3170.12430069,0.00025479,2]
[356859094,1743336695041,-863.53593701,0.00025479,2]
[356859095,1743336695052,-784.53156503,0.00025479,2]
[356859096,1743336695062,-678.48764582,0.00025479,2]
[356859097,1743336695072,-2366.33279515,0.00025479,2]
[356859098,1743336695081,-5982.61646647,0.00025479,2]
[356859099,1743336695091,-3762.78914498,0.00025479,2]
[356859100,1743336695101,-15868.58116038,0.00025479,2]
[356859101,1743336695111,-710.59336264,0.00025479,2]
[356859102,1743336695120,-6137.8485921,0.00025479,2]
[356859103,1743336695131,-4594.28237437,0.00025479,2]
[356859104,1743336695141,-792.62654764,0.00025479,2]
[356859105,1743336695151,-704.44678313,0.00025479,2]
[356859106,1743336695160,-2499.72045183,0.00025479,2]
[356859107,1743336695170,-1234.90112558,0.00025479,2]
[356859108,1743336695180,-1838.4941679,0.00025479,2]
[356859109,1743336695190,-5196.02342521,0.00025479,2]
[356859110,1743336695200,-12960.62228954,0.00025479,2]
[356859111,1743336695209,-1624.53829667,0.00025479,2]
[356859112,1743336695219,-2670.19609796,0.00025479,2]
[356859113,1743336695228,-2660.87022096,0.00025479,2]
[356859114,1743336695238,-762.1098913,0.00025479,2]
[356859115,1743336695247,-986.68667805,0.00025479,2]
[356859116,1743336695257,-5869.29325932,0.00025479,2]
[356859117,1743336695266,-615.66467177,0.00025479,2]
[356859118,1743336695276,-674.5464521,0.00025479,2]
[356859119,1743336695285,-2378.37038765,0.00025479,2]
[356859120,1743336695295,-1297.72187318,0.00025479,2]
[356859121,1743336695304,-1800.80199116,0.00025479,2]
[356859122,1743336695314,-1269.08503795,0.00025479,2]
[356859123,1743336695323,-524.49931916,0.00025479,2]
[356859124,1743336695333,-881.22252327,0.00025479,2]
[356859125,1743336695344,-15686.13341472,0.00025479,2]
[356859126,1743336695355,-1200.60088854,0.00025479,2]
[356859127,1743336695364,-629.05439111,0.00025479,2]
[356859128,1743336695374,-8052.37601122,0.00025479,2]
[356859129,1743336695384,-946.43650506,0.00025479,2]
[356859130,1743336695393,-504.14839937,0.00025479,2]
[356859131,1743336695403,-573.84097718,0.00025479,2]
[356859132,1743336695413,-808.85657698,0.00025479,2]
[356859133,1743336695423,-767.74077606,0.00025479,2]
[356859134,1743336695432,-804.45771214,0.00025479,2]
[356859135,1743336695442,-737.11500182,0.00025479,2]
[356859136,1743336695452,-3392.967,0.0002556,2]
[356859137,1743336695461,-7704.74518475,0.00025934,6]
[356859138,1743336695471,-30134.69054,0.00026,4]
[356859139,1743336695481,-82224.0628,0.00026,4]
[356859140,1743336695491,-455.610464,0.00026,30]
[356859141,1743336695501,-2000.0,0.00026,4]
[356859142,1743336695511,-1000.0,0.00026112,2]
[356859143,1743336695521,-160.0,0.00026184,3]
[356859144,1743336695531,-151.764467,0.00026217,3]
[356859145,1743336695540,-635.01623443,0.00026493,2]
[356859146,1743336695550,-7704.74518475,0.00026624,6]
[356859147,1743336695560,-635.01623443,0.0002663,2]